bitfinex/quotes_SOLUSD_20230110
["timestamp","ask_amount","ask_price","bid_price","bid_amount"]
[1673328486207,1.0228908,16.025,16.011,111.5283]
[1673328486414,21.0228908,16.025,16.012,20.0]
[1673328486621,17.0,16.024,16.012,20.0]
[1673328486828,1.0228908,16.023,16.012,20.0]
[1673328488184,1.0228908,16.023,16.01,46.86]
[1673328488518,2.54035003,16.021,16.007,20.0]
[1673328488726,3.02376798,16.019,16.004,31.61814735]
[1673328489044,3.02376798,16.019,16.001,46.89]
[1673328489045,3.14887245,16.017,16.001,46.89]
[1673328489570,20.0,16.016,16.003,20.0]
[1673328489884,20.14887245,16.015,16.001,46.89]
[1673328490509,20.0,16.014,16.001,46.89]
[1673328490701,3.14887245,16.012,16.001,46.89]
[1673328492171,3.14887245,16.013,16.001,46.89]
[1673328492595,3.14887245,16.014,16.001,46.89]
[1673328492803,3.14887245,16.014,15.999,46.89]
[1673328493034,3.14887245,16.014,16.001,63.89]
[1673328493561,3.14887245,16.014,16.001,46.89]
[1673328493781,20.14887245,16.014,15.998,31.61814735]
[1673328494093,20.14887245,16.014,16.001,66.89]
[1673328494495,20.14887245,16.014,16.001,20.0]
[1673328494704,20.14887245,16.014,16.0,179.88]
[1673328495570,20.14887245,16.014,16.001,20.0]
[1673328495757,20.14887245,16.014,16.002,46.88]
[1673328495969,20.14887245,16.014,16.003,20.0]
[1673328496927,20.14887245,16.014,16.002,46.88]
[1673328497349,20.14887245,16.014,16.001,46.89]
[1673328498298,20.14887245,16.014,16.001,20.0]
[1673328498826,66.85,16.013,16.0,132.99]
[1673328499035,3.14887245,16.012,16.0,132.99]
[1673328499236,46.86,16.011,16.0,132.99]
[1673328499448,23.14887245,16.01,16.0,132.99]
[1673328499646,20.0,16.009,16.0,132.99]
[1673328499858,3.14887245,16.008,16.0,132.99]
[1673328500288,3.14887245,16.008,16.001,46.89]
[1673328500504,3.14887245,16.012,16.001,46.89]
[1673328500700,20.14887245,16.012,16.001,46.89]
[1673328502067,3.14887245,16.012,16.001,46.89]
[1673328502289,3.14887245,16.014,16.002,20.0]
[1673328502608,3.14887245,16.014,16.003,46.88]
[1673328502809,20.0,16.018,16.003,46.88]
[1673328503432,20.0,16.018,16.002,46.88]
[1673328503866,20.0,16.018,16.003,17.0]
[1673328504080,20.0,16.018,16.004,46.88]
[1673328504291,20.0,16.018,15.995,20.0]
[1673328504501,20.0,16.018,15.996,66.9]
[1673328504709,20.0,16.018,15.997,20.0]
[1673328505023,20.0,16.018,15.999,20.0]
[1673328505215,20.0,16.018,16.0,66.89]
[1673328505644,20.0,16.014,15.993,20.0]
[1673328505850,20.0,16.014,15.978,101.61843647]
[1673328505851,3.14887245,16.012,15.976,110.3978]
[1673328506074,160.6232,16.011,15.976,110.3978]
[1673328506287,20.0,16.009,15.977,20.0]
[1673328506496,20.0,16.007,15.979,20.0]
[1673328506718,67.01887245,16.006,15.98,46.95]
[1673328506919,20.0,16.005,15.981,20.0]
[1673328507239,67.02887245,16.004,15.982,46.94]
[1673328507441,3.14887245,16.002,15.982,46.94]
[1673328507657,20.0,16.001,15.982,46.94]
[1673328507858,20.14887245,16.0,15.982,46.94]
[1673328508387,3.14887245,15.998,15.982,46.94]
[1673328508593,3.14887245,15.998,15.988,20.0]
[1673328509007,20.14887245,15.998,15.988,20.0]
[1673328509217,20.14887245,15.998,15.982,46.94]
[1673328509452,20.0,15.997,15.98,46.95]
[1673328509645,20.0,15.995,15.98,46.95]
[1673328511017,20.0,15.995,15.981,20.0]
[1673328511211,20.0,15.995,15.982,46.94]
[1673328512063,20.0,15.995,15.983,20.0]
[1673328513953,46.87,16.006,15.985,20.0]
[1673328514173,391.0411006,16.032,15.985,20.0]
[1673328514174,111.3532,16.004,15.988,101.73317681]
[1673328514388,20.0,16.003,15.989,20.0]
[1673328514589,20.0,16.003,15.99,20.0]
[1673328516057,17.0,16.002,15.99,20.0]
[1673328516677,111.3532,16.004,15.99,20.0]
[1673328516888,17.0,16.003,15.991,20.0]
[1673328517749,37.0,16.003,15.991,20.0]
[1673328517954,20.0,16.002,15.99,66.92]
[1673328518171,20.0,16.002,15.99,20.0]
[1673328518365,17.0,16.001,15.99,20.0]
[1673328519411,20.0,16.002,15.99,20.0]
[1673328520056,111.3532,16.004,15.991,20.0]
[1673328520362,20.0,16.003,15.991,20.0]
[1673328520788,20.0,16.003,15.99,20.0]
[1673328521433,17.0,16.002,15.99,20.0]
[1673328523215,20.0,16.001,15.99,20.0]
[1673328523428,17.0,16.0,15.99,20.0]
[1673328523635,17.0,16.0,15.988,20.0]
[1673328524269,20.0,15.999,15.988,20.0]
[1673328524477,17.0,15.998,15.988,20.0]
[1673328526468,17.0,15.998,15.987,5.6071392]
[1673328526687,20.0,15.997,15.987,5.6071392]
[1673328526883,17.0,15.996,15.987,5.6071392]
[1673328527088,20.0,15.997,15.987,5.6071392]
[1673328528472,0.99344278,15.998,15.987,5.6071392]
[1673328529316,37.0,15.999,15.987,5.6071392]
[1673328529952,20.0,15.999,15.987,5.6071392]
[1673328530371,20.0,15.997,15.987,5.6071392]
[1673328530575,20.80531787,15.997,15.987,5.6071392]
[1673328530891,17.0,15.996,15.987,5.6071392]
[1673328531819,20.0,15.997,15.987,5.6071392]
[1673328533735,46.88,16.005,15.989,20.0]
[1673328533937,46.87,16.006,15.99,20.0]
[1673328534153,20.0,16.005,15.99,20.0]
[1673328534358,158.2332,16.004,15.99,20.0]
[1673328534579,111.3532,16.004,15.988,20.0]
[1673328534780,111.3532,16.004,15.989,20.0]
[1673328535096,111.3532,16.004,15.99,20.0]
[1673328535939,111.3532,16.004,15.991,17.0]
[1673328536149,111.3532,16.004,15.99,20.0]
[1673328536340,17.0,16.002,15.989,20.0]
[1673328536674,20.0,16.001,15.988,20.0]
[1673328536877,20.0,16.001,15.989,17.0]
[1673328537292,20.0,16.001,15.99,20.0]
[1673328537505,17.0,16.0,15.99,20.0]
[1673328537720,66.89,16.001,15.99,20.0]
[1673328537941,20.0,16.001,15.988,20.0]
[1673328538562,20.0,16.001,15.989,17.0]
[1673328538873,20.0,16.001,15.99,20.0]
[1673328539499,17.0,16.0,15.99,20.0]
[1673328539715,20.0,16.001,15.988,20.0]
[1673328541288,17.0,16.0,15.988,20.0]
[1673328541499,20.0,15.999,15.988,20.0]
[1673328541935,17.0,15.998,15.988,20.0]
[1673328544161,20.0,16.001,15.988,20.0]
[1673328545420,17.0,16.0,15.988,20.0]
[1673328547485,17.0,16.0,15.987,5.6071392]
[1673328547702,20.0,15.999,15.987,5.6071392]
[1673328547926,20.0,15.997,15.987,5.6071392]
[1673328548130,17.0,15.996,15.987,5.6071392]
[1673328551925,20.0,15.997,15.987,5.6071392]
[1673328552329,19.00061681,16.003,15.988,46.93]
[1673328552538,111.3532,16.004,15.988,59.93911804]
[1673328552747,111.3532,16.004,15.989,33.00911804]
[1673328553077,20.0,16.001,15.989,20.0]
[1673328553490,20.0,16.001,15.988,20.0]
[1673328553696,17.0,16.0,15.988,20.0]
[1673328554026,20.0,15.999,15.988,20.0]
[1673328554236,20.0,15.999,15.989,13.00911804]
[1673328554549,20.0,15.999,15.99,20.0]
[1673328558853,415.0,16.026,15.991,13.00911804]
[1673328559068,228.8924,16.02,15.992,1.23138505]
[1673328559267,40.0,16.019,15.993,66.91]
[1673328559476,40.0,16.019,15.994,3.00004226]
[1673328559798,86.83,16.019,15.997,3.00004226]
[1673328560009,40.0,16.019,15.999,3.00004226]
[1673328560213,20.0,16.021,16.001,23.00004226]
[1673328560433,20.0,16.023,16.002,49.88004226]
[1673328560744,20.0,16.023,16.002,193.03035354]
[1673328560958,46.83,16.022,16.002,47.5157384]
[1673328561160,46.83,16.022,16.002,50.51578066]
[1673328561366,20.0,16.021,16.003,20.0]
[1673328561575,46.83,16.02,16.003,58.0913447]
[1673328561912,20.0,16.02,16.005,20.0]
[1673328562092,46.82,16.023,16.005,66.88]
[1673328562307,46.82,16.023,16.007,20.0]
[1673328562549,108.9849,16.024,16.009,20.0]
[1673328562758,108.9849,16.024,16.01,66.86]
[1673328562964,947.2061053,16.029,16.011,20.0]
[1673328563182,947.2061053,16.029,16.012,66.86]
[1673328563494,947.2061053,16.029,16.012,59.86911804]
[1673328563703,20.0,16.036,16.014,20.0]
[1673328563934,46.79,16.035,16.014,66.85]
[1673328564246,20.0,16.034,16.015,13.00911804]
[1673328564437,20.0,16.032,16.015,13.00911804]
[1673328564654,83.8,16.031,16.015,13.00911804]
[1673328565489,20.0,16.03,16.015,13.00911804]
[1673328565821,20.0,16.029,16.015,13.00911804]
[1673328566561,17.0,16.028,16.013,33.00911804]
[1673328566760,46.81,16.027,16.013,13.00911804]
[1673328566984,17.0,16.026,16.006,46.87]
[1673328567170,46.82,16.025,16.008,20.0]
[1673328567375,37.0,16.024,16.008,20.0]
[1673328567599,20.0,16.022,16.005,20.0]
[1673328567809,20.0,16.02,16.005,20.0]
[1673328568025,17.0,16.019,16.005,20.0]
[1673328569162,17.0,16.019,16.004,79.88911804]
[1673328569377,17.0,16.019,16.005,13.00911804]
[1673328570116,20.0,16.018,16.006,17.0]
[1673328570867,116.6263,16.019,16.006,17.0]
[1673328571389,20.0,16.018,16.006,17.0]
[1673328571590,116.6263,16.019,16.006,17.0]
[1673328571807,116.6263,16.019,16.007,13.01673695]
[1673328572019,20.0,16.018,16.007,13.01673695]
[1673328572843,20.0,16.018,16.008,17.0]
[1673328573265,116.6263,16.019,16.008,17.0]
[1673328573929,116.6263,16.019,16.007,13.01673695]
[1673328574766,46.83,16.021,16.007,13.01673695]
[1673328575090,113.3612,16.029,16.009,20.0]
[1673328575292,113.3612,16.029,16.01,66.86]
[1673328575510,20.0,16.028,16.011,20.0]
[1673328575703,115.5071,16.031,16.012,66.86]
[1673328575913,115.5071,16.031,16.012,159.70658549]
[1673328576231,115.5071,16.031,16.013,51.65751376]
[1673328576553,115.5071,16.031,16.015,20.0]
[1673328576767,115.5071,16.031,16.016,66.84]
[1673328576979,115.5071,16.031,16.016,79.85673695]
[1673328577291,115.5071,16.031,16.017,13.01673695]
[1673328577499,115.5071,16.031,16.018,66.84]
[1673328577699,115.5071,16.031,16.018,20.0]
[1673328577908,20.0,16.03,16.019,13.01673695]
[1673328578120,115.5071,16.031,16.02,20.0]
[1673328578334,17.0,16.03,16.02,20.0]
[1673328578658,17.0,16.03,16.018,20.0]
[1673328580125,115.5071,16.031,16.018,33.01673695]
[1673328580325,115.5071,16.031,16.019,20.0]
[1673328580540,115.5071,16.031,16.02,20.0]
[1673328580758,115.5071,16.031,16.02,33.01673695]
[1673328582546,20.0,16.03,16.02,33.01673695]
[1673328583287,115.5071,16.031,16.02,33.01673695]
[1673328584544,46.79,16.035,16.02,33.01673695]
[1673328584754,160.3361,16.035,16.021,13.01673695]
[1673328584966,113.5461,16.035,16.022,46.83]
[1673328585490,113.5461,16.035,16.023,13.01673695]
[1673328585915,113.5461,16.035,16.024,17.0]
[1673328587175,113.5461,16.035,16.025,20.0]
[1673328588549,113.5461,16.035,16.022,20.0]
[1673328588745,20.0,16.034,16.022,20.0]
[1673328589472,113.5461,16.035,16.022,33.01673695]
[1673328589895,113.5461,16.035,16.023,46.82]
[1673328590101,98.8607,16.038,16.023,46.82]
[1673328590312,98.8607,16.038,16.024,13.01673695]
[1673328590642,46.74,16.051,16.025,86.82]
[1673328590849,113.7223,16.051,16.025,158.52545484]
[1673328591066,66.76,16.046,16.026,46.08141498]
[1673328591277,66.76,16.046,16.027,46.81]
[1673328591465,20.0,16.046,16.028,40.0]
[1673328591676,20.0,16.046,16.029,46.81]
[1673328591886,20.0,16.046,16.03,40.0]
[1673328592327,20.0,16.046,16.03,53.01673695]
[1673328593574,20.0,16.046,16.031,13.01673695]
[1673328594012,20.0,16.046,16.031,59.81673695]
[1673328594319,20.0,16.046,16.032,33.01673695]
[1673328595694,20.0,16.046,16.033,13.01673695]
[1673328596003,98.8607,16.047,16.033,13.01673695]
[1673328597798,46.75,16.049,16.033,13.01673695]
[1673328597994,20.0,16.05,16.033,13.01673695]
[1673328598200,20.0,16.049,16.034,20.0]
[1673328598735,20.0,16.049,16.035,13.01673695]
[1673328600205,46.74,16.051,16.036,20.0]
[1673328600418,46.73,16.054,16.037,66.78]
[1673328600736,46.73,16.054,16.038,20.0]
[1673328600947,66.73,16.055,16.039,46.78]
[1673328601162,66.73,16.055,16.04,20.0]
[1673328601370,66.73,16.055,16.04,33.01673695]
[1673328601801,20.0,16.053,16.04,33.01673695]
[1673328602118,20.0,16.053,16.041,13.01673695]
[1673328602525,46.74,16.052,16.036,38.64077681]
[1673328602729,17.0,16.051,16.031,46.8]
[1673328602936,46.74,16.05,16.031,59.81673695]
[1673328603171,20.0,16.048,16.032,20.0]
[1673328603487,20.0,16.048,16.033,13.01673695]
[1673328605483,20.0,16.048,16.034,17.0]
[1673328605890,20.0,16.048,16.034,30.01673695]
[1673328607588,20.0,16.048,16.034,13.01673695]
[1673328607985,66.75,16.048,16.034,13.01673695]
[1673328608432,66.75,16.048,16.03,66.8]
[1673328608619,20.0,16.046,16.031,13.02864923]
[1673328609270,20.0,16.046,16.032,46.8]
[1673328609465,20.0,16.046,16.031,59.82864923]
[1673328609669,20.0,16.046,16.033,13.02864923]
[1673328609891,20.0,16.046,16.034,17.0]
[1673328614729,20.0,16.046,16.034,30.02864923]
[1673328615556,20.0,16.046,16.031,46.8]
[1673328615872,20.0,16.044,16.03,46.8]
[1673328616417,20.0,16.044,16.031,13.02864923]
[1673328616940,20.0,16.044,16.031,33.02864923]
[1673328617132,20.0,16.044,16.031,13.02864923]
[1673328617348,20.0,16.044,16.032,13.02864923]
[1673328618860,20.0,16.044,16.033,17.0]
[1673328619138,20.0,16.044,16.033,30.02864923]
[1673328619779,20.0,16.046,16.033,30.02864923]
[1673328619981,221.5153,16.047,16.033,30.02864923]
[1673328620190,20.0,16.046,16.034,46.79]
[1673328620512,20.0,16.046,16.035,30.02864923]
[1673328622178,20.0,16.046,16.035,13.02864923]
[1673328623034,20.0,16.046,16.03,73.3]
[1673328623352,20.0,16.046,16.02,219.7471]
[1673328623353,63.76,16.045,16.031,13.02864923]
[1673328623548,63.76,16.045,16.023,46.82]
[1673328623758,26.3,16.04,16.022,46.83]
[1673328623969,83.78,16.039,16.021,46.83]
[1673328624299,20.0,16.038,16.023,13.02864923]
[1673328624491,63.78,16.037,16.023,13.02864923]
[1673328624820,20.0,16.036,16.023,13.02864923]
[1673328625859,46.79,16.035,16.023,13.02864923]
[1673328626065,20.0,16.034,16.023,13.02864923]
[1673328630808,20.0,16.032,16.018,20.0]
[1673328631017,20.0,16.032,16.019,20.0]
[1673328631223,17.0,16.031,16.019,20.0]
[1673328631760,17.0,16.031,16.018,20.0]
[1673328632481,17.0,16.031,16.015,38.64077681]
[1673328632482,93.09,16.03,16.015,38.64077681]
[1673328632697,20.0,16.028,16.014,43.8757384]
[1673328632915,66.81,16.028,16.014,43.8757384]
[1673328633529,177.2761,16.028,16.014,43.8757384]
[1673328633740,0.90939639,16.027,16.014,43.8757384]
[1673328634899,177.2761,16.028,16.014,43.8757384]
[1673328635207,0.69595083,16.027,16.014,43.8757384]
[1673328635538,130.4661,16.028,16.014,43.8757384]
[1673328636696,0.69124896,16.027,16.013,33.06467803]
[1673328636902,20.0,16.026,16.013,33.06467803]
[1673328637116,0.91321813,16.025,16.013,12.67878342]
[1673328637305,0.91321813,16.025,16.01,85.50077681]
[1673328637517,47.73321813,16.025,16.011,20.0]
[1673328637847,17.0,16.024,16.011,12.67878342]
[1673328638061,17.0,16.024,16.01,38.64077681]
[1673328638062,37.0,16.024,16.01,38.64077681]
[1673328638275,1.48511002,16.023,16.01,38.64077681]
[1673328638588,21.48511002,16.023,16.01,38.64077681]
[1673328641108,21.48511002,16.023,16.011,12.67878342]
[1673328643404,21.48511002,16.023,16.011,32.67878342]
[1673328643741,21.48511002,16.023,16.011,12.67878342]
[1673328644889,21.48511002,16.023,16.007,66.87]
[1673328644890,20.0,16.019,16.005,46.88]
[1673328645088,3.14887245,16.018,16.003,46.88]
[1673328645319,129.41807245,16.018,16.003,46.88]
[1673328645739,20.0,16.017,16.003,46.88]
[1673328645949,20.14887245,16.016,16.002,160.0525]
[1673328646372,20.0,16.015,16.002,160.0525]
[1673328646581,3.14887245,16.014,16.002,160.0525]
[1673328647223,3.14887245,16.014,16.002,46.88]
[1673328649728,3.14887245,16.014,16.003,20.0]
[1673328650477,3.14887245,16.014,16.002,46.88]
[1673328650799,3.14887245,16.014,16.004,12.67878342]
[1673328651533,3.14887245,16.016,16.004,12.67878342]
[1673328651849,20.14887245,16.016,16.004,12.67878342]
[1673328652258,20.0,16.015,16.004,12.67878342]
[1673328652472,3.14887245,16.014,16.004,12.67878342]
[1673328654041,20.14887245,16.015,16.004,12.67878342]
[1673328654354,3.14887245,16.015,16.004,12.67878342]
[1673328654564,20.14887245,16.015,16.004,12.67878342]
[1673328654989,23.14887245,16.015,16.004,12.67878342]
[1673328656350,3.14887245,16.016,16.005,20.0]
[1673328656784,3.14887245,16.016,16.006,12.67878342]
[1673328660045,3.14887245,16.016,16.005,20.0]
[1673328660268,20.14887245,16.016,16.003,66.88]
[1673328660461,20.14887245,16.016,16.005,12.67878342]
[1673328665194,20.14887245,16.016,15.987,5.6071392]
[1673328665195,132.64,16.01,15.987,5.6071392]
[1673328665413,26.5,16.0,15.987,5.6071392]
[1673328665933,26.5,16.0,15.988,46.93]
[1673328666361,17.0,15.999,15.988,46.93]
[1673328666676,20.0,15.998,15.987,5.6071392]
[1673328666891,17.0,15.997,15.987,5.6071392]
[1673328667099,17.0,15.997,15.988,20.0]
[1673328667516,20.0,15.998,15.988,46.93]
[1673328667760,17.0,15.997,15.987,5.6071392]
[1673328667978,46.9,15.996,15.987,5.6071392]
[1673328668164,37.0,15.995,15.987,5.6071392]
[1673328668906,46.89,16.001,15.987,5.6071392]
[1673328669106,20.0,15.999,15.987,5.6071392]
[1673328670176,20.0,15.997,15.987,5.6071392]
[1673328670508,20.0,15.995,15.987,5.6071392]
[1673328670694,17.0,15.994,15.987,5.6071392]
[1673328671234,20.0,15.995,15.987,5.6071392]
[1673328671439,17.0,15.994,15.987,5.6071392]
[1673328671655,20.0,15.993,15.987,5.6071392]
[1673328675578,17.0,15.992,15.987,5.6071392]
[1673328676618,20.0,15.991,15.979,20.0]
[1673328676817,19.94744685,15.99,15.98,20.0]
[1673328677439,20.0,15.989,15.98,20.0]
[1673328677653,2.94744685,15.988,15.98,20.0]
[1673328677861,2.94744685,15.99,15.98,20.0]
[1673328678401,17.0,15.99,15.981,20.0]
[1673328678594,2.94744685,15.989,15.981,20.0]
[1673328678807,2.94744685,15.989,15.981,17.5]
[1673328679094,19.94744685,15.989,15.981,17.5]
[1673328679442,2.94744685,15.989,15.981,17.5]
[1673328679646,2.94744685,15.992,15.981,29.46522189]
[1673328679871,111.4621,15.999,15.982,95.05713349]
[1673328680090,20.0,15.998,15.983,20.0]
[1673328680305,20.0,15.998,15.984,46.94]
[1673328680503,20.0,15.998,15.984,107.02235538]
[1673328680711,20.0,15.998,15.985,11.96522189]
[1673328681998,20.0,15.996,15.985,11.96522189]
[1673328682197,17.0,15.995,15.985,11.96522189]
[1673328684089,20.0,15.996,15.985,11.96522189]
[1673328684489,20.0,15.996,15.986,20.0]
[1673328685235,20.0,15.996,15.987,11.96522189]
[1673328685659,20.0,15.996,15.986,20.0]
[1673328685854,20.0,15.997,15.987,11.96522189]
[1673328686058,20.0,15.998,15.987,11.96522189]
[1673328686707,20.0,15.997,15.98,20.0]
[1673328686901,26.3,15.99,15.97,26.34]
[1673328687105,88.45860864,15.989,15.971,20.0]
[1673328687446,21.53860864,15.988,15.971,20.0]
[1673328687650,20.0,15.988,15.972,46.97]
[1673328687969,20.0,15.988,15.973,20.0]
[1673328688794,20.0,15.988,15.973,68.23487525]
[1673328689007,20.0,15.988,15.975,20.0]
[1673328689435,17.0,15.987,15.975,20.0]
[1673328689645,20.0,15.988,15.975,20.0]
[1673328689970,0.3131,31.93,15.976,95.19487525]
[1673328689971,19.00061681,15.993,15.976,95.19487525]
[1673328690159,111.2595,15.994,15.977,40.0]
[1673328690389,20.0,15.993,15.979,20.0]
[1673328690594,66.91,15.993,15.979,20.0]
[1673328690806,66.91,15.993,15.98,20.0]
[1673328691226,17.0,15.992,15.98,20.0]
[1673328694179,46.91,15.993,15.98,20.0]
[1673328694397,111.2595,15.994,15.981,68.23487525]
[1673328694587,111.2595,15.994,15.983,20.0]
[1673328696797,20.0,15.993,15.982,58.23257692]
[1673328697003,111.2595,15.994,15.982,11.29257692]
[1673328697637,111.2595,15.994,15.981,66.95]
[1673328697847,37.0,15.993,15.981,20.0]
[1673328698054,114.1692,16.008,15.982,44.83073349]
[1673328698270,26.48,16.01,15.982,44.83073349]
[1673328698271,20.0,16.005,15.984,20.0]
[1673328698473,20.0,16.005,15.985,66.93]
[1673328698694,112.1096,16.006,15.99,26.4]
[1673328699002,112.1096,16.006,15.991,46.92]
[1673328699407,112.1096,16.006,15.992,20.0]
[1673328700365,20.0,16.017,15.994,2.17616478]
[1673328700366,46.84,16.016,15.994,2.17616478]
[1673328700582,163.9442,16.016,15.996,2.17616478]
[1673328700909,163.9442,16.016,15.998,2.17616478]
[1673328701106,163.9442,16.016,16.0,20.0]
[1673328701323,117.1042,16.016,16.001,49.06616478]
[1673328701561,117.1042,16.016,16.001,60.3587417]
[1673328701765,17.0,16.015,16.002,11.29257692]
[1673328701947,17.0,16.015,16.002,13.4687417]
[1673328702162,46.84,16.018,16.003,20.0]
[1673328702384,117.1042,16.019,16.003,31.29257692]
[1673328702590,46.81,16.027,16.004,58.17257692]
[1673328702805,137.1042,16.026,16.004,58.17257692]
[1673328703126,65.82061681,16.025,16.002,46.88]
[1673328703335,20.0,16.024,16.005,11.29257692]
[1673328703549,46.82,16.023,16.005,11.29257692]
[1673328703954,20.0,16.021,16.005,11.29257692]
[1673328704276,20.0,16.019,16.005,11.29257692]
[1673328704472,46.84,16.018,16.001,46.89]
[1673328704676,17.0,16.017,16.002,11.29257692]
[1673328704889,20.0,16.017,16.002,11.29257692]
[1673328705341,20.0,16.015,16.002,11.29257692]
[1673328706903,17.0,16.016,16.002,11.29257692]
[1673328710025,66.84,16.017,16.002,11.29257692]
[1673328710347,20.0,16.017,16.002,11.29257692]
[1673328710551,20.0,16.017,16.002,58.17257692]
[1673328710763,20.0,16.017,16.003,20.0]
[1673328711088,20.0,16.017,16.003,31.29257692]
[1673328712794,46.84,16.018,16.004,11.29257692]
[1673328712998,158.2997,16.024,16.01,26.5]
[1673328713216,158.2997,16.024,16.011,20.0]
[1673328713402,111.4797,16.024,16.011,20.0]
[1673328713741,111.4797,16.024,16.011,31.29257692]
[1673328714255,111.4797,16.024,16.01,26.5]
[1673328714467,111.4797,16.024,16.007,20.0]
[1673328714788,20.0,16.023,16.008,66.87]
[1673328715101,66.82,16.023,16.008,20.0]
[1673328715290,66.82,16.023,16.009,11.29257692]
[1673328715497,66.82,16.023,16.01,20.0]
[1673328716992,46.82,16.023,16.011,20.0]
[1673328717201,111.4797,16.024,16.011,20.0]
[1673328717412,20.0,16.023,16.01,31.29257692]
[1673328717628,66.82,16.023,16.01,31.29257692]
[1673328717813,20.0,16.023,16.01,31.29257692]
[1673328719203,20.0,16.023,16.01,57.79257692]
[1673328720356,158.2997,16.024,16.01,57.79257692]
[1673328720564,17.0,16.023,16.01,57.79257692]
[1673328720763,17.0,16.023,16.01,20.0]
[1673328720960,20.0,16.022,16.01,20.0]
[1673328721173,63.83,16.021,16.007,20.0]
[1673328721398,20.0,16.02,16.007,20.0]
[1673328721609,17.0,16.019,16.007,20.0]
[1673328722238,17.0,16.02,16.007,31.29257692]
[1673328722448,17.0,16.02,16.008,20.0]
[1673328722874,17.0,16.02,16.006,20.0]
[1673328723076,86.83,16.019,16.006,20.0]
[1673328723509,40.0,16.019,16.006,20.0]
[1673328723909,20.0,16.019,16.006,20.0]
[1673328724443,40.0,16.019,16.006,20.0]
[1673328725393,20.0,16.019,16.006,20.0]
[1673328725924,20.0,16.018,16.006,20.0]
[1673328726128,20.0,16.018,16.006,31.29257692]
[1673328726341,20.0,16.018,16.006,11.29257692]
[1673328727815,46.83,16.021,16.006,11.29257692]
[1673328728025,46.82,16.023,16.007,20.0]
[1673328728230,46.82,16.023,16.008,46.87]
[1673328728439,46.82,16.023,16.009,40.0]
[1673328728666,46.81,16.026,16.009,51.29257692]
[1673328728849,20.0,16.023,16.011,20.0]
[1673328729270,46.81,16.026,16.011,63.9702267]
[1673328729503,199.6041,16.029,16.012,46.86]
[1673328729692,20.0,16.028,16.013,20.0]
[1673328729902,20.0,16.028,16.014,46.85]
[1673328730122,20.0,16.028,16.014,58.14257692]
[1673328730547,20.0,16.028,16.015,11.29257692]
[1673328731685,46.8,16.032,16.02,26.5]
[1673328731899,20.0,16.035,16.021,20.0]
[1673328732116,20.0,16.035,16.022,46.83]
[1673328732320,20.0,16.035,16.023,20.0]
[1673328732530,20.0,16.035,16.023,11.29257692]
[1673328737947,20.0,16.036,16.021,66.83]
[1673328737948,26.27,16.04,16.024,65.00697952]
[1673328738234,66.78,16.039,16.024,32.32932974]
[1673328738433,20.0,16.038,16.024,32.32932974]